bitfinex-derivatives/quotes_ETHF0:USTF0_20240927
["timestamp","ask_amount","ask_price","bid_price","bid_amount"]
[1727445946879,0.37573,2660.8,2660.7,0.4996]
[1727445947084,0.37572,2660.9,2660.7,0.4996]
[1727445947591,0.37573,2660.8,2660.7,0.4996]
[1727445947792,3.22,2661.0,2660.7,0.4996]
[1727445948491,0.37573,2660.9,2660.7,0.4996]
[1727445948684,0.37573,2660.8,2660.7,0.4996]
[1727445948883,0.37572,2660.9,2660.7,0.4996]
[1727445949391,0.37573,2660.8,2660.7,0.4996]
[1727445949589,0.37576,2660.6,2660.4,1.46414337]
[1727445949793,3.22,2660.8,2660.3,1.93714337]
[1727445949794,0.37578,2660.4,2660.3,1.93714337]
[1727445950090,0.37578,2660.4,2660.3,1.82725011]
[1727445950291,0.37578,2660.5,2660.3,3.29139348]
[1727445950485,3.22,2660.8,2660.4,4.56205011]
[1727445950792,0.37577,2660.5,2660.4,3.2078]
[1727445950984,0.37576,2660.6,2660.4,4.56033324]
[1727445951193,0.37576,2660.6,2660.4,3.2078]
[1727445951387,3.22,2660.8,2660.4,3.2078]
[1727445951388,0.37574,2660.7,2660.4,3.2078]
[1727445951781,0.37576,2660.6,2660.4,3.2078]
[1727445951977,0.37577,2660.5,2660.4,4.67194337]
[1727445952186,0.93932,2660.9,2660.3,0.473]
[1727445952187,0.37578,2660.4,2660.3,1.93714337]
[1727445952381,0.37578,2660.4,2660.3,0.473]
[1727445952791,0.37578,2660.4,2660.2,2.42234337]
[1727445952792,1.3154,2660.1,2660.0,1.46414337]
[1727445953092,1.3154,2660.1,2659.3,3.3968]
[1727445953093,0.93961,2660.0,2659.3,1.46414337]
[1727445953391,0.93961,2660.0,2658.9,3.2078]
[1727445953392,0.93989,2659.2,2658.9,7.11218232]
[1727445953689,0.93989,2659.2,2658.7,0.9496]
[1727445953690,3.59596,2659.2,2658.7,0.9496]
[1727445953892,0.37595,2659.3,2658.7,2.41374337]
[1727445954094,3.22,2659.4,2658.8,0.376]
[1727445954288,0.37595,2659.2,2658.8,0.376]
[1727445954485,0.37595,2659.3,2658.9,0.37599]
[1727445954795,3.59593,2659.4,2659.0,0.37597]
[1727445955090,6.4278,2659.8,2659.2,3.2078]
[1727445955280,0.3759,2659.6,2659.3,0.4693]
[1727445955486,0.37589,2659.7,2659.4,0.4688]
[1727445955793,0.37591,2659.6,2659.4,0.4688]
[1727445955994,6.4278,2659.8,2659.4,0.4688]
[1727445956200,3.22,2660.0,2659.4,0.4688]
[1727445956500,0.93961,2660.0,2659.4,0.4688]
[1727445956686,0.93961,2660.0,2659.4,0.84472]
[1727445956687,0.37588,2659.8,2659.4,0.84472]
[1727445956991,0.37589,2659.7,2659.4,0.4688]
[1727445957495,0.37587,2659.8,2659.4,0.84472]
[1727445957799,0.37589,2659.7,2659.4,0.4688]
[1727445957993,0.93961,2660.0,2659.4,0.4688]
[1727445958386,0.37587,2659.8,2659.4,0.84471]
[1727445958596,0.37587,2659.8,2659.4,0.84472]
[1727445958893,0.37587,2659.8,2659.4,0.4688]
[1727445959086,0.37587,2659.8,2659.5,0.37591]
[1727445959395,0.37593,2659.4,2659.2,3.2078]
[1727445959596,0.93968,2659.8,2659.3,1.35184]
[1727445959788,0.93968,2659.8,2659.3,0.9759]
[1727445959789,0.37592,2659.5,2659.3,0.9759]
[1727445960099,0.37593,2659.4,2659.3,0.9759]
[1727445960493,0.37592,2659.5,2659.3,0.9759]
[1727445960690,0.37593,2659.4,2659.3,0.9759]
[1727445961093,0.93974,2659.7,2659.3,0.9759]
[1727445961295,0.37591,2659.6,2659.3,1.35184]
[1727445961495,0.93964,2659.9,2659.3,0.9759]
[1727445961703,0.37586,2659.9,2659.6,0.37589]
[1727445961998,0.93948,2660.4,2659.3,0.9759]
[1727445961999,7.1778,2660.0,2659.3,0.9759]
[1727445962293,7.1778,2660.0,2659.3,0.501]
[1727445962294,0.37593,2659.4,2659.3,0.501]
[1727445962889,0.93971,2659.8,2659.3,0.501]
[1727445962890,0.37592,2659.5,2659.3,0.501]
[1727445963095,16.18958,2661.0,2659.6,0.37589]
[1727445963096,2.56755,2660.2,2659.6,0.37589]
[1727445963305,0.93948,2660.4,2659.8,0.37586]
[1727445963495,0.37584,2660.1,2659.8,0.37586]
[1727445963690,8.1172,2660.6,2659.7,0.4723]
[1727445963892,0.37583,2660.1,2659.8,0.86387]
[1727445964291,0.93947,2660.4,2659.8,0.488]
[1727445964292,0.93955,2660.2,2659.8,0.488]
[1727445964600,7.17147,2660.4,2659.8,0.488]
[1727445964601,0.37585,2659.9,2659.8,0.488]
[1727445964894,4.14732,2660.3,2659.8,0.488]
[1727445965098,0.37581,2660.2,2659.9,0.37585]
[1727445965300,0.37581,2660.2,2659.9,0.89205]
[1727445965805,3.2078,2660.3,2659.9,0.5162]
[1727445966096,0.37577,2660.5,2660.2,0.3758]
[1727445966298,0.93933,2660.8,2660.3,0.87929]
[1727445966502,0.93936,2660.7,2660.3,0.5035]
[1727445966893,6.53731,2660.9,2660.3,0.8793]
[1727445967098,5.598,2660.9,2660.3,0.5035]
[1727445967401,3.2078,2661.5,2660.7,3.2078]
[1727445967700,0.9389,2662.1,2661.2,0.37566]
[1727445967701,3.2078,2661.6,2661.2,0.37566]
[1727445967896,0.37562,2661.6,2661.3,0.5035]
[1727445968403,3.2078,2661.8,2661.3,0.5035]
[1727445968703,0.37563,2661.6,2661.3,0.5035]
[1727445969204,0.37563,2661.6,2661.0,3.2078]
[1727445969205,0.37567,2661.3,2661.0,3.2078]
[1727445969608,0.37567,2661.3,2660.9,0.4952]
[1727445969609,0.37566,2661.3,2660.9,0.4952]
[1727445969797,0.37568,2661.2,2660.9,0.4952]
[1727445969992,0.37569,2661.1,2660.9,0.4952]
[1727445970299,7.1778,2661.1,2660.8,0.4808]
[1727445970500,0.37571,2660.9,2660.8,0.4808]
[1727445970812,3.7584,2661.0,2660.4,0.4952]
[1727445970997,8.11706,2661.1,2660.4,0.4952]
[1727445971192,0.37577,2660.5,2660.4,0.4952]
[1727445971598,3.97,2660.7,2660.1,0.4848]
[1727445971801,3.2078,2660.8,2660.1,0.4848]
[1727445971802,0.37581,2660.2,2660.1,0.4848]
[1727445972406,4.90948,2660.4,2659.8,0.4634]
[1727445972407,3.97,2660.4,2659.8,0.4634]
[1727445972701,0.37582,2660.2,2659.9,0.4659]
[1727445973102,3.97,2660.4,2659.8,0.4634]
[1727445973604,0.9395,2660.3,2659.8,0.4634]
[1727445973798,3.97,2660.4,2659.8,0.4634]
[1727445973998,0.37582,2660.2,2659.8,0.4634]
[1727445974303,3.97,2660.4,2660.0,3.2078]
[1727445974611,3.2078,2660.8,2660.0,3.2078]
[1727445974900,0.37577,2660.6,2660.1,0.4659]
[1727445975306,0.37578,2660.5,2660.1,0.4659]
[1727445975498,0.37579,2660.4,2660.1,0.4659]
[1727445975701,0.37578,2660.5,2660.1,0.4659]
[1727445976012,0.37579,2660.4,2660.1,0.4659]
[1727445976206,7.1778,2660.8,2660.1,0.4659]
[1727445976405,8.11716,2660.8,2660.1,0.4659]
[1727445976605,0.37581,2660.2,2660.1,0.4659]
[1727445976813,0.37585,2659.9,2659.8,0.4634]
[1727445977500,3.2078,2660.2,2659.8,0.4634]
[1727445977701,0.37585,2659.9,2659.8,0.4634]
[1727445977901,7.7292,2660.1,2659.4,1.47880397]
[1727445978105,0.37591,2659.6,2659.4,0.4999]
[1727445978301,3.97,2659.7,2659.4,0.4999]
[1727445978506,0.3759,2659.6,2659.4,0.4999]
[1727445978707,0.37591,2659.5,2659.4,0.4999]
[1727445978913,3.97,2659.7,2659.4,0.4999]
[1727445979210,0.37591,2659.5,2659.4,0.4999]
[1727445979404,3.97,2659.7,2659.4,0.4999]
[1727445979802,0.37591,2659.6,2659.4,0.4999]
[1727445980801,0.3759,2659.6,2659.4,0.4999]
[1727445981007,3.2078,2660.3,2659.5,3.76]
[1727445981210,3.2078,2660.3,2659.6,3.6844]
[1727445981402,0.37581,2660.3,2659.7,0.4966]
[1727445981605,0.37581,2660.3,2659.9,0.37585]
[1727445981907,1.628,2660.4,2660.1,0.37583]
[1727445982107,1.628,2660.4,2660.2,0.37581]
[1727445982310,2.00378,2660.4,2660.3,0.9644]
[1727445982510,1.628,2660.4,2660.3,0.9644]
[1727445982711,2.00378,2660.4,2660.3,0.4878]
[1727445982901,1.628,2660.4,2659.9,3.2078]
[1727445983105,1.628,2660.4,2660.0,0.4878]
[1727445983106,0.37581,2660.3,2660.0,0.4878]
[1727445983609,1.628,2660.4,2660.0,0.4878]
[1727445983815,2.00379,2660.4,2660.0,0.86364]
[1727445984010,2.00379,2660.4,2660.1,0.37583]
[1727445984204,2.00379,2660.4,2660.0,0.4878]
[1727445984514,2.00379,2660.4,2660.0,0.86364]
[1727445984716,0.37574,2660.8,2660.4,0.37578]
[1727445984906,3.2078,2661.0,2660.2,3.2078]
[1727445985111,3.97,2660.9,2660.2,3.2078]
[1727445985408,3.97,2660.9,2660.0,1.46670397]
[1727445985409,0.3758,2660.3,2660.0,0.4878]
[1727445985605,0.37579,2660.4,2660.0,0.86363]
[1727445986002,0.37578,2660.5,2660.0,0.86363]
[1727445986203,0.3758,2660.4,2660.0,0.4878]
[1727445986618,3.97,2660.6,2660.0,0.4878]
[1727445986619,0.37581,2660.3,2660.0,0.4878]
[1727445986911,0.37581,2660.2,2660.0,0.4878]
[1727445987615,0.93943,2660.5,2660.0,0.4878]
[1727445987819,0.37581,2660.3,2660.0,0.4878]
[1727445988021,3.97,2660.6,2660.0,0.4878]
[1727445988311,4.14718,2660.7,2660.3,0.37579]
[1727445988312,0.37574,2660.7,2660.3,0.37579]
[1727445988506,3.97,2660.9,2660.4,0.4689]
[1727445988705,3.97,2660.9,2660.4,0.84468]
[1727445988706,0.37574,2660.8,2660.4,0.84468]
[1727445988911,0.37574,2660.8,2660.5,0.37577]
[1727445989234,3.97,2660.9,2660.4,0.4689]
[1727445989417,0.37574,2660.8,2660.4,0.84467]
[1727445989616,3.2078,2661.0,2660.7,0.37574]
[1727445989826,3.2078,2661.0,2660.8,0.4879]
[1727445989827,0.37571,2660.9,2660.8,0.4879]
[1727445990208,3.58351,2661.0,2660.8,0.4879]
[1727445990408,0.37571,2660.9,2660.8,0.4879]
[1727445991609,0.37571,2661.0,2660.8,0.4879]
[1727445991813,0.37571,2660.9,2660.8,0.4879]
[1727445992313,0.9392,2661.2,2660.8,0.4879]
[1727445992618,8.8228,2661.3,2660.8,0.4879]
[1727445992811,6.24,2661.6,2660.8,0.4879]
[1727445992812,3.2078,2661.6,2660.8,0.4879]
[1727445993011,5.615,2661.9,2660.9,0.4805]
[1727445993012,7.1778,2661.9,2660.9,0.4805]
[1727445993213,7.1778,2661.9,2661.3,3.2078]
[1727445993214,3.2078,2661.9,2661.3,3.2078]
[1727445993415,0.93879,2662.4,2661.6,0.37561]
[1727445993416,0.37555,2662.1,2661.6,0.37561]
[1727445993615,0.37555,2662.1,2661.4,0.4805]
[1727445993616,3.2078,2662.4,2661.7,0.513]
[1727445993924,3.2078,2663.0,2662.3,0.37552]
[1727445994111,3.2078,2663.0,2662.0,0.4805]
[1727445994112,0.37548,2662.6,2662.0,0.4805]
[1727445994313,0.37548,2662.6,2662.0,0.85605]
[1727445994622,3.2078,2663.0,2662.0,0.4805]
[1727445994916,0.37548,2662.6,2662.0,0.85605]
[1727445995114,0.93859,2662.9,2662.1,0.37554]
[1727445995316,0.37548,2662.6,2662.0,0.85605]
[1727445995510,0.37547,2662.7,2662.1,0.37554]
[1727445995712,0.37549,2662.6,2662.0,0.85605]
[1727445995914,4.14635,2663.0,2662.0,0.85605]
[1727445995915,0.37547,2662.7,2662.1,0.37554]
[1727445996116,4.14635,2663.0,2662.1,0.37554]
[1727445996323,0.37546,2662.8,2662.2,0.37553]
[1727445996610,0.37546,2662.8,2662.0,0.4805]
[1727445996611,0.37547,2662.7,2662.1,0.37554]
[1727445996811,0.37547,2662.7,2662.0,0.4805]
[1727445997014,4.34545,2662.8,2662.2,0.37553]
[1727445997208,0.37546,2662.7,2662.2,0.37553]
[1727445997407,0.37546,2662.7,2662.1,0.37554]
[1727445997604,3.97,2662.8,2662.2,0.47]
[1727445998007,0.37549,2662.5,2662.2,0.47]
[1727445998215,0.37548,2662.6,2662.2,0.47]
[1727445998620,4.14636,2663.0,2662.2,0.47]
[1727445998621,3.2078,2663.0,2662.2,0.47]
[1727445998822,0.37545,2662.8,2662.3,3.2078]
[1727445999020,0.37547,2662.7,2662.2,0.47]
[1727445999317,0.37545,2662.8,2662.3,3.2078]
[1727445999520,3.2078,2663.0,2662.4,0.5095]
[1727445999521,0.37544,2662.9,2662.4,0.5095]
[1727445999913,3.97,2663.1,2662.4,0.5095]
[1727446000220,0.37542,2663.0,2662.5,0.37548]
[1727446000414,4.14626,2663.3,2662.6,0.4687]
[1727446000612,0.37541,2663.1,2662.6,0.84417]
[1727446000818,0.3754,2663.2,2662.7,0.37545]
[1727446001012,0.3754,2663.2,2662.7,0.37546]
[1727446001231,3.97,2663.5,2662.6,3.6765]
[1727446001529,3.2078,2663.7,2662.6,3.6765]
[1727446001730,3.2078,2663.7,2663.2,3.2078]
[1727446001926,0.37529,2664.0,2663.5,3.58314]
[1727446002229,0.37527,2664.1,2663.5,3.58314]
[1727446002619,0.37527,2664.1,2663.6,0.37533]
[1727446002819,3.97,2664.4,2663.7,0.37532]
[1727446002820,0.37524,2664.3,2663.7,0.37532]
[1727446003030,3.97,2664.4,2663.9,0.37529]
[1727446003031,0.37523,2664.4,2663.9,0.37529]
[1727446003233,0.37523,2664.4,2664.0,0.5113]
[1727446003714,3.2078,2664.6,2664.0,0.5113]
[1727446003919,3.583,2664.6,2664.1,0.37526]
[1727446004113,0.37521,2664.5,2664.2,0.4813]
[1727446004325,3.2078,2664.6,2664.2,0.4813]
[1727446004622,0.93791,2664.9,2664.2,0.4813]
[1727446004623,0.37522,2664.4,2664.2,0.4813]
[1727446005018,0.37522,2664.5,2664.2,0.4813]
[1727446005219,4.14575,2664.7,2664.2,0.4813]
[1727446005422,0.37523,2664.4,2664.2,0.4813]
[1727446005727,0.37523,2664.3,2664.2,0.4813]
[1727446006033,0.37523,2664.4,2664.2,0.4813]
[1727446006233,5.39786,2665.0,2664.2,0.4813]
[1727446006234,0.93792,2664.8,2664.2,0.4813]
[1727446006420,8.60566,2665.0,2664.2,0.4813]
[1727446006421,0.93788,2664.9,2664.2,0.4813]
[1727446006616,4.14568,2664.9,2664.2,0.4813]
[1727446006822,6.103,2665.4,2664.2,0.4813]
[1727446006823,0.37523,2664.4,2664.2,0.4813]
[1727446007330,0.37522,2664.5,2664.2,0.4813]
[1727446007527,0.37523,2664.4,2664.2,0.4813]
[1727446008031,0.37522,2664.5,2664.2,0.4813]
[1727446008224,0.37522,2664.4,2664.2,0.4813]
[1727446008422,0.37516,2664.9,2664.2,0.4813]
[1727446008623,42.67508,2665.9,2664.7,3.2078]
[1727446008624,0.37511,2665.2,2664.7,3.2078]
[1727446008828,0.37509,2665.4,2664.8,0.4753]
[1727446009031,0.9376,2665.8,2664.8,0.4753]
[1727446009223,44.0078,2665.9,2664.8,0.4753]
[1727446009224,3.2078,2665.9,2664.8,0.4753]
[1727446009428,3.2078,2665.9,2665.0,3.2078]
[1727446009630,0.37507,2665.5,2665.1,0.5087]
[1727446010031,0.37506,2665.6,2665.1,0.5087]
[1727446010333,4.14533,2665.9,2665.1,0.5087]
[1727446010334,0.37507,2665.5,2665.1,0.5087]
[1727446010524,0.37506,2665.6,2665.1,0.5087]
[1727446010720,0.37507,2665.5,2665.1,0.5087]
[1727446010922,0.37506,2665.6,2665.1,0.5087]
[1727446011119,4.14533,2665.9,2665.1,0.5087]
[1727446011323,0.37507,2665.5,2665.1,0.5087]
[1727446011931,3.2078,2665.6,2665.0,3.2078]
[1727446012231,0.37512,2665.1,2665.0,3.2078]
[1727446012638,0.37513,2665.1,2664.4,0.86672]
[1727446012827,3.2078,2665.3,2664.4,0.4915]
[1727446013028,0.93778,2665.2,2664.4,0.4915]
[1727446013230,4.14565,2665.0,2664.3,3.2078]
[1727446013732,1.31328,2664.4,2663.6,0.189]
[1727446013932,0.37529,2663.9,2663.3,3.2078]
[1727446014138,3.2078,2664.0,2663.0,4.67194337]
[1727446014433,0.37532,2663.7,2663.0,5.04735337]
[1727446014630,3.2078,2664.0,2663.0,4.67194337]
[1727446014832,7.07909,2664.3,2663.0,4.67194337]
[1727446014833,0.37535,2663.5,2663.0,4.67194337]
[1727446015036,0.37537,2663.4,2663.0,4.67194337]
[1727446015226,0.37536,2663.5,2663.0,4.67194337]
[1727446015430,3.2078,2663.7,2663.0,4.67194337]
[1727446015431,0.37536,2663.4,2663.0,4.67194337]
[1727446016630,0.37536,2663.5,2663.0,4.67194337]
[1727446016934,0.37534,2663.6,2663.0,4.67194337]
[1727446017329,4.46,2663.9,2663.0,4.67194337]
[1727446017330,3.2078,2664.0,2663.0,4.67194337]
[1727446017934,0.37539,2663.2,2663.0,1.46414337]
[1727446018437,0.93841,2663.4,2662.7,0.9974]
[1727446018639,0.93837,2663.5,2662.7,0.9974]
[1727446018845,3.2078,2663.3,2662.7,0.9974]
[1727446019140,0.37541,2663.1,2662.7,0.9974]
[1727446019341,0.37539,2663.2,2662.7,0.9974]
[1727446019632,3.2078,2663.8,2663.0,0.37542]
[1727446019835,0.37535,2663.5,2662.9,0.37542]
[1727446020140,3.2078,2663.8,2663.0,0.37542]
[1727446020334,0.37535,2663.5,2663.0,0.37542]
[1727446020939,3.2078,2663.8,2662.8,3.2078]
[1727446021139,4.146,2664.0,2663.1,3.5832]
[1727446021336,3.58309,2664.0,2663.4,0.37536]
[1727446021544,3.2078,2664.3,2663.5,0.37534]
[1727446021836,0.3753,2663.9,2663.4,3.2078]
[1727446022038,0.37531,2663.8,2663.4,3.2078]
[1727446022236,0.3753,2663.9,2663.4,3.58316]
[1727446022938,0.3753,2663.9,2663.4,3.58315]
[1727446023337,0.37531,2663.8,2663.4,3.2078]
[1727446023740,0.37531,2663.8,2662.9,0.37543]
[1727446023741,0.37538,2663.3,2662.9,0.37543]
[1727446024037,4.1461,2663.8,2662.8,3.2078]
[1727446024232,0.37536,2663.4,2663.0,0.37541]
[1727446024638,0.37532,2663.7,2663.1,3.2078]
[1727446024832,0.37533,2663.7,2663.2,0.37538]
[1727446025434,0.37533,2663.7,2663.1,3.2078]
[1727446025435,0.37536,2663.5,2663.1,3.2078]
[1727446025644,0.37536,2663.4,2663.1,3.2078]
[1727446025848,0.37536,2663.5,2663.1,3.2078]
[1727446026147,0.93833,2663.7,2663.1,3.2078]
[1727446026148,0.37536,2663.4,2663.1,3.2078]
[1727446026344,0.37535,2663.5,2663.1,3.2078]
[1727446026542,0.93826,2663.9,2663.1,3.2078]
[1727446026842,0.37532,2663.7,2663.3,0.37537]
[1727446027036,0.3753,2663.9,2663.4,3.2078]
[1727446027232,0.37529,2663.9,2663.4,3.2078]
[1727446027437,0.93816,2664.1,2663.5,0.5079]
[1727446027638,0.37533,2663.6,2663.5,0.5079]
[1727446027840,0.37531,2663.8,2663.5,0.5079]
[1727446028446,0.37533,2663.7,2663.5,0.5079]
[1727446028646,0.37531,2663.8,2663.5,0.5079]
[1727446028953,3.2078,2664.4,2663.8,0.3753]
[1727446029257,41.738,2664.6,2663.9,0.37529]
[1727446029258,3.2078,2664.5,2663.9,0.37529]
[1727446029545,0.37523,2664.4,2663.9,0.37528]
[1727446029750,4.14578,2664.7,2663.7,3.2078]
[1727446029751,0.37524,2664.3,2663.7,3.2078]
[1727446029941,0.37524,2664.3,2663.6,5.18677458]
[1727446029942,0.93799,2664.6,2664.0,3.2078]
[1727446030141,0.93799,2664.6,2663.6,0.9903]
[1727446030142,0.37524,2664.3,2663.7,3.2078]
[1727446030342,0.93799,2664.6,2663.8,0.37529]
[1727446030746,0.93799,2664.6,2663.7,3.2078]
[1727446030747,3.2078,2664.7,2663.7,3.2078]
[1727446030948,3.2078,2664.7,2663.6,1.92864]
[1727446030949,3.2078,2665.1,2664.0,3.2078]
[1727446031137,0.37521,2664.5,2664.0,3.2078]
[1727446031341,5.39785,2665.0,2664.0,3.2078]
[1727446031342,3.2078,2664.7,2664.0,3.2078]
[1727446031654,0.37523,2664.4,2664.0,0.37527]
[1727446031851,0.93799,2664.6,2663.7,3.2078]
[1727446032051,0.93806,2664.4,2663.7,3.58312]
[1727446032252,0.93809,2664.3,2663.7,3.2078]
[1727446032444,0.37526,2664.2,2663.8,0.3753]
[1727446032647,4.14581,2664.6,2663.7,3.2078]
[1727446032947,0.37524,2664.3,2663.7,3.2078]
[1727446033142,0.93789,2664.9,2664.1,0.37526]
[1727446033351,0.93795,2664.8,2664.0,3.2078]
[1727446033558,0.3752,2664.6,2664.2,0.37525]
[1727446033747,0.93792,2664.8,2664.0,3.2078]
[1727446034054,0.37523,2664.4,2664.0,3.58307]
[1727446034253,0.37522,2664.5,2664.1,0.37526]
[1727446034558,13.9078,2665.0,2664.0,3.2078]
[1727446034851,4.46,2664.3,2663.6,0.4965]
[1727446035048,0.37533,2663.6,2663.5,0.5079]
[1727446035551,0.37533,2663.7,2663.5,0.5079]
[1727446035743,10.7,2664.3,2663.5,0.5079]
[1727446035744,4.14579,2664.6,2663.5,4.2623]
[1727446035940,0.37526,2664.2,2663.9,3.2078]
[1727446036143,3.2078,2664.6,2663.9,3.2078]
[1727446036144,0.93806,2664.4,2663.9,3.2078]
[1727446036357,3.2078,2664.6,2663.6,3.2078]
[1727446036358,0.37532,2663.7,2663.6,3.2078]
[1727446036546,0.37533,2663.6,2663.5,0.5079]
[1727446036851,3.97,2663.8,2663.3,3.2078]
[1727446037042,0.37535,2663.5,2663.3,3.2078]
[1727446037247,0.37535,2663.5,2662.4,2.10663397]
[1727446037248,14.35621,2663.4,2662.4,1.16790397]
[1727446037555,3.2078,2663.0,2662.3,4.2124]
[1727446037855,0.37548,2662.6,2662.3,1.0046]
[1727446038549,7.1778,2663.0,2661.9,3.2078]
[1727446038758,7.1778,2662.7,2661.9,3.2078]
[1727446039049,0.37548,2662.6,2662.1,0.37554]
[1727446039845,0.37545,2662.8,2662.2,0.37552]
[1727446040042,7.1778,2663.0,2662.2,3.2078]
[1727446040356,0.37548,2662.6,2662.2,3.2078]
[1727446040750,3.2078,2663.0,2662.2,3.58333]
[1727446040954,3.2078,2663.0,2662.5,3.2078]
[1727446041159,3.58322,2663.0,2662.5,3.58329]
[1727446041348,0.37539,2663.2,2662.7,0.37545]
[1727446041548,3.2078,2663.4,2662.8,0.37544]
[1727446041854,1.755,2663.5,2662.9,3.2078]
[1727446042052,2.13036,2663.5,2663.0,0.37541]
[1727446042248,0.37533,2663.7,2663.2,3.2078]
[1727446042446,4.46,2664.1,2663.2,3.2078]
[1727446042447,0.3753,2663.9,2663.3,0.5104]
[1727446042749,0.3753,2663.9,2663.5,3.2078]
[1727446042949,0.37531,2663.8,2663.5,3.2078]
[1727446043454,3.2078,2664.1,2663.5,3.2078]
[1727446044250,0.3753,2663.9,2663.5,3.2078]
[1727446044552,3.58307,2664.1,2663.5,3.58314]
[1727446044756,0.37526,2664.2,2663.6,0.37533]
[1727446044957,6.215,2664.5,2663.6,0.37533]
[1727446044958,0.37524,2664.3,2663.6,0.37533]
[1727446045260,0.37524,2664.3,2663.7,0.37532]
[1727446045551,0.37524,2664.3,2663.6,0.37533]
[1727446045552,0.37523,2664.3,2663.6,0.37533]
[1727446046356,0.37525,2664.2,2663.5,5.06054397]
[1727446046753,3.2078,2664.4,2663.5,4.68520397]
[1727446046754,0.37527,2664.1,2663.5,4.68520397]
[1727446046955,3.58303,2664.4,2663.7,0.37531]
[1727446047157,0.37521,2664.5,2663.8,3.5831]
[1727446047458,3.2078,2664.7,2663.8,3.2078]
[1727446047671,0.37523,2664.4,2663.8,3.5831]
[1727446047850,3.2078,2664.7,2663.8,3.2078]
[1727446048050,0.37526,2664.2,2663.8,3.2078]
[1727446048253,0.37524,2664.3,2663.8,3.2078]
[1727446048453,0.37525,2664.2,2663.8,3.2078]
[1727446049354,0.37527,2664.1,2663.8,3.2078]
[1727446050458,0.37529,2664.0,2663.8,3.2078]
[1727446051365,0.37527,2664.1,2663.8,3.2078]
[1727446051766,0.93809,2664.3,2663.8,3.2078]
[1727446051955,0.37523,2664.4,2663.9,0.37528]
[1727446052357,0.37522,2664.5,2664.0,0.37527]
[1727446052864,3.2078,2664.7,2663.8,3.2078]
[1727446052865,0.93799,2664.6,2663.8,3.2078]
[1727446053259,0.37525,2664.3,2663.8,3.5831]
[1727446053464,0.93799,2664.6,2663.8,3.5831]
[1727446053665,3.2078,2664.4,2663.8,3.2078]
[1727446053861,0.37526,2664.2,2663.8,3.2078]
[1727446054061,0.37524,2664.3,2663.8,3.58309]
[1727446054259,3.2078,2664.4,2663.8,3.2078]
[1727446054468,0.37526,2664.2,2663.8,3.5831]
[1727446054661,3.2078,2664.4,2663.8,3.2078]
[1727446054861,0.37525,2664.2,2663.8,3.5831]
[1727446055062,0.37523,2664.4,2664.1,3.2078]
[1727446055363,0.37524,2664.3,2663.9,0.37528]
[1727446055568,0.37526,2664.1,2663.8,4.18670397]
[1727446055866,0.93802,2664.5,2663.8,3.5831]
[1727446055867,0.37525,2664.2,2663.8,3.5831]
[1727446056364,6.215,2664.9,2663.8,4.18670397]
[1727446056365,0.37527,2664.1,2663.8,4.18670397]
[1727446056566,0.37525,2664.2,2663.8,4.18670397]
[1727446056767,0.37525,2664.2,2663.9,0.37529]
[1727446057068,0.37525,2664.2,2663.8,4.18670397]
[1727446057270,0.93807,2664.4,2664.0,0.97890397]
[1727446057465,0.37526,2664.2,2663.9,0.97890397]
[1727446057665,0.37526,2664.2,2663.9,1.35419397]
[1727446057964,0.37526,2664.2,2664.0,0.97890397]
[1727446058169,0.37526,2664.1,2663.9,0.97890397]
[1727446058367,0.93806,2664.4,2663.8,4.18670397]
[1727446058368,0.37529,2663.9,2663.8,4.18670397]
[1727446058667,0.37529,2663.9,2663.7,1.46414337]
[1727446058668,0.3753,2663.8,2663.7,0.97890397]
[1727446059170,0.3753,2663.8,2663.6,0.97890397]
[1727446059367,0.37532,2663.7,2663.6,0.97890397]
[1727446059667,1.31367,2663.6,2663.5,0.97890397]
[1727446059861,0.37535,2663.5,2663.4,0.5033]
[1727446060060,0.93816,2664.2,2663.4,4.2577]
[1727446060261,0.93816,2664.2,2663.7,1.35421397]
[1727446060262,0.37529,2663.9,2663.7,1.35421397]
[1727446060457,0.93808,2664.4,2663.7,0.97890397]
[1727446060664,0.37526,2664.2,2663.9,0.37528]
[1727446060866,0.37525,2664.2,2663.8,0.97890397]
[1727446061071,0.37528,2664.0,2663.9,3.2078]
[1727446061269,0.37527,2664.1,2663.9,3.2078]
[1727446061472,0.37528,2664.0,2663.9,3.2078]
[1727446061663,0.37528,2664.0,2663.6,0.97890397]
[1727446061864,0.3753,2663.9,2663.6,0.97890397]
[1727446062165,0.37528,2664.0,2663.6,0.37533]
[1727446062360,0.93814,2664.2,2663.6,0.37533]
[1727446062562,0.37527,2664.1,2663.5,0.97890397]
[1727446062776,0.93809,2664.3,2663.6,0.37532]
[1727446063066,0.93809,2664.3,2663.6,4.18670397]
[1727446063258,0.37528,2664.0,2663.6,4.56203397]
[1727446063461,7.1778,2664.4,2663.6,4.18670397]
[1727446063462,0.93814,2664.2,2663.6,4.18670397]
[1727446063664,0.37528,2664.0,2663.6,4.56203397]
[1727446063863,0.37527,2664.1,2663.7,0.37532]
[1727446064172,7.1778,2664.4,2663.6,4.18670397]
[1727446064367,0.93815,2664.2,2663.6,4.18670397]
[1727446064872,0.3753,2663.9,2663.6,4.18670397]
[1727446065564,4.14598,2664.1,2663.6,4.18670397]
[1727446065762,0.37536,2663.4,2663.3,4.18670397]
[1727446065976,1.31377,2663.4,2663.3,3.2078]